fUST/lending_fUST_20250207
["ID","MTS","AMOUNT","RATE_DAILY","PERIOD"]
[352084917,1738941045741,-500.0,0.00011236,2]
[352084919,1738941045750,-500.0,0.00011236,2]
[352084921,1738941045760,-1281.79,0.00011236,2]
[352084923,1738941045770,-500.0,0.00011236,2]
[352084925,1738941045779,-500.0,0.00011236,2]
[352084927,1738941045789,-500.0,0.00011236,2]
[352084929,1738941045799,-507.07363356,0.00011236,2]
[352084931,1738941045808,-1873.72,0.00011236,2]
[352084934,1738941045818,-500.0,0.00011236,2]
[352084936,1738941045828,-500.0,0.00011236,2]
[352084937,1738941045837,-501.7035594,0.00011236,2]
[352084939,1738941045847,-500.0,0.00011236,2]
[352084942,1738941045858,-500.0,0.00011236,2]
[352084944,1738941045869,-500.0,0.00011236,2]
[352084945,1738941045878,-500.0,0.00011236,2]
[352084948,1738941045888,-500.0,0.00011236,2]
[352084949,1738941045897,-500.0,0.00011236,2]
[352084951,1738941045906,-500.0,0.00011236,2]
[352084954,1738941045916,-574.83,0.00011236,2]
[352084955,1738941045927,-500.0,0.00011236,2]
[352084957,1738941045936,-500.0,0.00011236,2]
[352084959,1738941045946,-500.0,0.00011236,2]
[352084961,1738941045956,-500.0,0.00011236,2]
[352084964,1738941045966,-500.0,0.00011236,2]
[352084966,1738941045976,-500.0,0.00011236,2]
[352084968,1738941045985,-500.0,0.00011236,2]
[352084970,1738941045994,-500.0,0.00011236,2]
[352084972,1738941046003,-500.0,0.00011236,2]
[352084974,1738941046012,-500.0,0.00011236,2]
[352084976,1738941046022,-1554.87,0.00011236,2]
[352084978,1738941046031,-500.0,0.00011236,2]
[352084980,1738941046040,-500.0,0.00011236,2]
[352084981,1738941046049,-500.0,0.00011236,2]
[352084983,1738941046059,-1370.02,0.00011236,2]
[352084986,1738941046068,-500.0,0.00011236,2]
[352084988,1738941046078,-500.0,0.00011236,2]
[352084991,1738941046087,-763.82,0.00011236,2]
[352084993,1738941046096,-500.0,0.00011236,2]
[352084994,1738941046111,-500.0,0.00011236,2]
[352084996,1738941046121,-500.0,0.00011236,2]
[352084998,1738941046131,-682.15,0.00011236,2]
[352085000,1738941046141,-500.0,0.00011236,2]
[352085002,1738941046150,-610.79,0.00011236,2]
[352085004,1738941046160,-555.46279273,0.00011236,2]
[352085007,1738941046170,-500.0,0.00011236,2]
[352085009,1738941046180,-500.0,0.00011236,2]
[352085011,1738941046190,-500.0,0.00011236,2]
[352085013,1738941046200,-500.0,0.00011236,2]
[352085015,1738941046209,-1433.8,0.00011236,2]
[352085017,1738941046219,-500.0,0.00011236,2]
[352085018,1738941046229,-500.0,0.00011236,2]
[352085020,1738941046238,-526.57,0.00011236,2]
[352085022,1738941046248,-500.0,0.00011236,2]
[352085024,1738941046257,-371.11168764,0.00011236,2]
[352085026,1738941046267,-500.0,0.00011236,2]
[352085028,1738941046276,-519.82839717,0.00011236,2]
[352085030,1738941046286,-500.0,0.00011236,2]
[352085032,1738941046295,-500.0,0.00011236,2]
[352085035,1738941046305,-502.40915046,0.00011236,2]
[352085037,1738941046314,-577.33,0.00011236,2]
[352085039,1738941046323,-700.02,0.00011236,2]
[352085040,1738941046333,-500.0,0.00011236,2]
[352085042,1738941046343,-500.0,0.00011236,2]
[352085044,1738941046357,-500.0,0.00011236,2]
[352085046,1738941046366,-500.0,0.00011236,2]
[352085048,1738941046375,-500.0,0.00011236,2]
[352085050,1738941046385,-500.0,0.00011236,2]
[352085052,1738941046394,-504.62371485,0.00011236,2]
[352085054,1738941046403,-500.0,0.00011236,2]
[352085056,1738941046413,-500.0,0.00011236,2]
[352085058,1738941046423,-500.0,0.00011236,2]
[352085060,1738941046433,-500.0,0.00011236,2]
[352085062,1738941046448,-555.81,0.00011236,2]
[352085064,1738941046457,-649.39,0.00011236,2]
[352085066,1738941046467,-500.0,0.00011236,2]
[352085068,1738941046477,-500.0,0.00011236,2]
[352085070,1738941046487,-500.0,0.00011236,2]
[352085072,1738941046496,-420.0,0.00011244,2]
[352085074,1738941046505,-258.96263502,0.00011273,2]
[352085076,1738941046515,-151.0,0.000113,2]
[352085078,1738941046525,-3094.20665698,0.00011351,2]
[352085080,1738941046536,-500.0,0.00011369,2]
[352085082,1738941046545,-5691.84,0.00011369,2]
[352085084,1738941046555,-1334.31,0.00011369,2]
[352085086,1738941046564,-1371.83,0.00011369,2]
[352085088,1738941046574,-500.0,0.00011369,2]
[352085090,1738941046584,-500.0,0.00011369,2]
[352085093,1738941046594,-790.6,0.00011369,2]
[352085094,1738941046606,-3441.54,0.00011369,2]
[352085096,1738941046616,-500.0,0.0001137,2]
[352085099,1738941046626,-500.0,0.0001137,2]
[352085100,1738941046635,-500.0,0.0001137,2]
[352085102,1738941046645,-723.69,0.0001137,2]
[352085105,1738941046654,-8909.14,0.0001137,2]
[352085106,1738941046663,-740.55,0.0001137,2]
[352085109,1738941046674,-500.0,0.0001137,2]
[352085111,1738941046683,-887.55,0.0001137,2]
[352085113,1738941046693,-500.0,0.0001137,2]
[352085115,1738941046702,-500.0,0.0001137,2]
[352085117,1738941046712,-4333.25,0.0001137,2]
[352085119,1738941046722,-1976.82,0.0001137,2]
[352085121,1738941046731,-10647.36,0.0001137,2]
[352085122,1738941046741,-1536.63,0.0001137,2]
[352085124,1738941046751,-500.0,0.0001137,2]
[352085126,1738941046760,-500.0,0.0001137,2]
[352085128,1738941046770,-600.61,0.0001137,2]
[352085130,1738941046779,-500.0,0.0001137,2]
[352085133,1738941046790,-500.0,0.0001137,2]
[352085134,1738941046800,-4658.66,0.0001137,2]
[352085137,1738941046809,-5576.86,0.0001137,2]
[352085139,1738941046819,-500.0,0.0001137,2]
[352085141,1738941046828,-500.0,0.0001137,2]
[352085142,1738941046838,-3392.61,0.0001137,2]
[352085144,1738941046847,-6759.41,0.00011372,2]
[352085147,1738941046859,-6759.41,0.00011372,2]
[352085148,1738941046868,-500.0,0.00011373,2]
[352085150,1738941046878,-500.0,0.00011373,2]
[352085152,1738941046888,-500.0,0.00011373,2]
[352085155,1738941046898,-500.0,0.00011373,2]
[352085157,1738941046907,-500.0,0.00011373,2]
[352085159,1738941046918,-500.0,0.00011373,2]
[352085161,1738941046928,-500.0,0.00011373,2]
[352085163,1738941046938,-500.0,0.00011373,2]
[352085165,1738941046948,-500.0,0.00011373,2]
[352085166,1738941046958,-500.0,0.00011373,2]
[352085169,1738941046968,-500.0,0.00011373,2]
[352085170,1738941046978,-382.00034945,0.00011373,2]
[352085172,1738941046988,-500.0,0.00011373,2]
[352085175,1738941046998,-500.83049464,0.00011373,2]
[352085176,1738941047009,-500.0,0.00011373,2]
[352085178,1738941047019,-500.0,0.00011373,2]
[352085180,1738941047030,-500.0,0.00011373,2]
[352085182,1738941047040,-500.0,0.00011373,2]
[352085184,1738941047050,-500.0,0.00011373,2]
[352085186,1738941047061,-415.39902672,0.00011373,2]
[352085189,1738941047071,-500.0,0.00011373,2]
[352085191,1738941047080,-520.2001162,0.00011373,2]
[352085193,1738941047090,-500.0,0.00011373,2]
[352085194,1738941047100,-500.0,0.00011373,2]
[352085197,1738941047117,-500.0,0.00011373,2]
[352085198,1738941047127,-500.0,0.00011373,2]
[352085200,1738941047137,-581.22846419,0.00011373,2]
[352085202,1738941047148,-503.50980569,0.00011373,2]
[352085204,1738941047157,-432.28351278,0.00011373,2]
[352085215,1738941047253,-500.0,0.00011373,2]
[352085217,1738941047263,-500.0,0.00011373,2]
[352085219,1738941047273,-847.75,0.00011373,2]
[352085221,1738941047283,-500.0,0.00011373,2]
[352085223,1738941047293,-500.0,0.00011373,2]
[352085225,1738941047304,-506.37325331,0.00011373,2]
[352085227,1738941047314,-500.0,0.00011373,2]
[352085230,1738941047324,-1160.58,0.00011373,2]
[352085231,1738941047334,-500.0,0.00011373,2]
[352085234,1738941047344,-500.0,0.00011373,2]
[352085236,1738941047357,-500.0,0.00011373,2]
[352085237,1738941047367,-500.0,0.00011373,2]
[352085240,1738941047377,-500.0,0.00011373,2]
[352085241,1738941047387,-500.0,0.00011373,2]
[352085243,1738941047397,-500.0,0.00011373,2]
[352085244,1738941047406,-500.0,0.00011373,2]
[352085245,1738941047416,-500.0,0.00011373,2]
[352085246,1738941047426,-195.57799124,0.00011373,2]
[352085247,1738941047436,-500.0,0.00011373,2]
[352085248,1738941047446,-688.32,0.00011373,2]
[352085249,1738941047459,-500.0,0.00011373,2]
[352085250,1738941047470,-500.0,0.00011373,2]
[352085251,1738941047481,-500.0,0.00011373,2]
[352085252,1738941047491,-500.0,0.00011373,2]
[352085253,1738941047503,-501.18740556,0.00011373,2]
[352085254,1738941047514,-528.105748,0.00011373,2]
[352085255,1738941047526,-526.37842923,0.00011373,2]
[352085256,1738941047538,-500.0,0.00011373,2]
[352085257,1738941047549,-500.0,0.00011373,2]
[352085258,1738941047560,-500.0,0.00011373,2]
[352085259,1738941047570,-500.0,0.00011373,2]
[352085260,1738941047581,-500.0,0.00011373,2]
[352085261,1738941047590,-500.0,0.00011373,2]
[352085262,1738941047600,-500.0,0.00011373,2]
[352085263,1738941047617,-500.0,0.00011373,2]
[352085265,1738941047626,-504.7783934,0.00011373,2]
[352085267,1738941047636,-500.0,0.00011373,2]
[352085269,1738941047647,-500.0,0.00011373,2]
[352085271,1738941047658,-500.0,0.00011373,2]
[352085273,1738941047668,-500.0,0.00011373,2]
[352085275,1738941047679,-1282.91,0.00011373,2]
[352085277,1738941047690,-500.0,0.00011373,2]
[352085278,1738941047701,-500.0,0.00011373,2]
[352085279,1738941047711,-559.24,0.00011373,2]
[352085280,1738941047721,-500.0,0.00011373,2]
[352085281,1738941047731,-500.0,0.00011373,2]
[352085282,1738941047741,-500.0,0.00011373,2]
[352085283,1738941047751,-500.0,0.00011373,2]
[352085284,1738941047761,-500.0,0.00011373,2]
[352085285,1738941047771,-500.0,0.00011373,2]
[352085286,1738941047782,-500.0,0.00011373,2]
[352085287,1738941047791,-509.69894569,0.00011373,2]
[352085288,1738941047801,-500.0,0.00011373,2]
[352085289,1738941047810,-500.0,0.00011373,2]
[352085290,1738941047820,-500.0,0.00011373,2]
[352085291,1738941047831,-500.0,0.00011373,2]
[352085292,1738941047841,-500.0,0.00011373,2]
[352085293,1738941047857,-500.0,0.00011373,2]
[352085294,1738941047868,-500.0,0.00011373,2]
[352085295,1738941047880,-500.0,0.00011373,2]
[352085296,1738941047890,-500.0,0.00011373,2]
[352085297,1738941047901,-500.0,0.00011373,2]
[352085298,1738941047912,-500.0,0.00011373,2]
[352085299,1738941047922,-685.65,0.00011373,2]
[352085300,1738941047933,-500.0,0.00011373,2]
[352085301,1738941047943,-500.0,0.00011373,2]
[352085302,1738941047954,-1000.0,0.00011373,2]
[352085303,1738941047964,-500.0,0.00011373,2]
[352085304,1738941047974,-500.0,0.00011373,2]
[352085305,1738941047984,-500.0,0.00011373,2]
[352085306,1738941047994,-500.0,0.00011373,2]
[352085307,1738941048004,-500.0,0.00011373,2]
[352085308,1738941048015,-801.35,0.00011373,2]
[352085309,1738941048026,-500.0,0.00011373,2]
[352085310,1738941048037,-349.38190605,0.00011373,2]
[352085311,1738941048049,-500.0,0.00011373,2]
[352085312,1738941048059,-552.4,0.00011373,2]
[352085313,1738941048070,-500.0,0.00011373,2]
[352085314,1738941048081,-793.25,0.00011373,2]
[352085315,1738941048091,-500.0,0.00011373,2]
[352085316,1738941048102,-1214.6,0.00011373,2]
[352085317,1738941048114,-500.0,0.00011373,2]
[352085319,1738941048124,-500.0,0.00011373,2]
[352085321,1738941048135,-500.0,0.00011373,2]
[352085323,1738941048145,-500.0,0.00011373,2]
[352085325,1738941048158,-509.16796397,0.00011373,2]
[352085327,1738941048168,-500.0,0.00011373,2]
[352085329,1738941048179,-500.0,0.00011373,2]
[352085331,1738941048189,-500.0,0.00011373,2]
[352085333,1738941048200,-500.0,0.00011373,2]
[352085335,1738941048209,-500.0,0.00011373,2]
[352085337,1738941048218,-752.75,0.00011373,2]
[352085339,1738941048229,-500.0,0.00011373,2]
[352085341,1738941048239,-500.0,0.00011373,2]
[352085342,1738941048248,-500.0,0.00011373,2]
[352085344,1738941048256,-500.0,0.00011373,2]
[352085346,1738941048265,-500.0,0.00011373,2]
[352085349,1738941048275,-7472.13,0.00011373,2]
[352085351,1738941048284,-500.0,0.00011373,2]
[352085353,1738941048295,-500.0,0.00011373,2]
[352085355,1738941048304,-500.0,0.00011373,2]
[352085357,1738941048314,-518.57,0.00011373,2]
[352085359,1738941048324,-500.0,0.00011373,2]
[352085360,1738941048334,-500.0,0.00011373,2]
[352085362,1738941048343,-500.0,0.00011373,2]
[352085364,1738941048356,-500.0,0.00011373,2]
[352085366,1738941048366,-500.0,0.00011373,2]
[352085368,1738941048377,-504.24523206,0.00011373,2]
[352085370,1738941048387,-500.0,0.00011373,2]
[352085373,1738941048398,-1724.03,0.00011373,2]
[352085375,1738941048408,-500.0,0.00011373,2]
[352085377,1738941048419,-927.82,0.00011373,2]
[352085378,1738941048430,-500.0,0.00011373,2]
[352085380,1738941048442,-507.01,0.00011373,2]
[352085382,1738941048453,-3950.02,0.00011373,2]
[352085384,1738941048463,-500.0,0.00011373,2]
[352085386,1738941048474,-500.0,0.00011373,2]
[352085388,1738941048485,-500.0,0.00011373,2]
[352085391,1738941048496,-1272.69,0.00011373,2]
[352085393,1738941048507,-1895.94,0.00011373,2]
[352085395,1738941048517,-500.0,0.00011373,2]
[352085397,1738941048526,-500.0,0.00011373,2]
[352085399,1738941048537,-500.0,0.00011373,2]
[352085401,1738941048548,-500.0,0.00011373,2]
[352085403,1738941048557,-1789.87,0.00011373,2]
[352085405,1738941048568,-500.0,0.00011373,2]
[352085407,1738941048577,-500.0,0.00011373,2]
[352085409,1738941048586,-500.0,0.00011373,2]
[352085411,1738941048597,-500.0,0.00011373,2]
[352085413,1738941048609,-629.69853506,0.00011373,2]
[352085415,1738941048619,-500.0,0.00011373,2]
[352085417,1738941048629,-1281.79,0.00011373,2]
[352085419,1738941048639,-500.0,0.00011373,2]
[352085421,1738941048649,-500.0,0.00011373,2]
[352085423,1738941048659,-500.0,0.00011373,2]
[352085425,1738941048669,-1873.72,0.00011373,2]
[352085427,1738941048679,-500.0,0.00011373,2]
[352085429,1738941048689,-500.0,0.00011373,2]
[352085432,1738941048699,-500.0,0.00011373,2]
[352085434,1738941048710,-500.0,0.00011373,2]
[352085436,1738941048721,-500.0,0.00011373,2]
[352085438,1738941048731,-500.0,0.00011373,2]
[352085440,1738941048742,-500.0,0.00011373,2]
[352085442,1738941048754,-500.0,0.00011373,2]
[352085444,1738941048765,-500.0,0.00011373,2]
[352085446,1738941048775,-574.83,0.00011373,2]
[352085448,1738941048786,-500.0,0.00011373,2]
[352085450,1738941048796,-500.0,0.00011373,2]
[352085452,1738941048807,-500.0,0.00011373,2]
[352085463,1738941048910,-500.0,0.00011373,2]
[352085465,1738941048922,-500.0,0.00011373,2]
[352085467,1738941048933,-500.0,0.00011373,2]
[352085469,1738941048944,-500.0,0.00011373,2]
[352085471,1738941048954,-500.0,0.00011373,2]
[352085473,1738941048966,-500.0,0.00011373,2]
[352085475,1738941048977,-299.46486598,0.00011373,2]
[352085477,1738941048987,-1554.87,0.00011373,2]
[352085479,1738941048997,-500.0,0.00011373,2]
[352085481,1738941049007,-500.0,0.00011373,2]
[352085483,1738941049017,-500.0,0.00011373,2]
[352085485,1738941049027,-1370.02,0.00011373,2]
[352085487,1738941049037,-500.0,0.00011373,2]
[352085489,1738941049047,-763.82,0.00011373,2]
[352085491,1738941049056,-500.0,0.00011373,2]
[352085493,1738941049066,-500.0,0.00011373,2]
[352085495,1738941049076,-500.0,0.00011373,2]
[352085497,1738941049086,-682.15,0.00011373,2]
[352085499,1738941049096,-500.0,0.00011373,2]
[352085501,1738941049109,-610.79,0.00011373,2]
[352085503,1738941049118,-500.0,0.00011373,2]
[352085505,1738941049128,-500.0,0.00011373,2]
[352085507,1738941049139,-506.97938863,0.00011373,2]
[352085509,1738941049149,-1433.8,0.00011373,2]
[352085511,1738941049159,-500.0,0.00011373,2]
[352085514,1738941049170,-500.0,0.00011373,2]
[352085516,1738941049179,-526.57,0.00011373,2]
[352085518,1738941049189,-500.0,0.00011373,2]
[352085520,1738941049198,-500.0,0.00011373,2]
[352085522,1738941049209,-500.0,0.00011373,2]
[352085523,1738941049218,-577.33,0.00011373,2]
[352085526,1738941049227,-700.02,0.00011373,2]
[352085527,1738941049237,-500.0,0.00011373,2]
[352085530,1738941049247,-506.26834661,0.00011373,2]
[352085531,1738941049256,-500.0,0.00011373,2]
[352085533,1738941049266,-500.0,0.00011373,2]
[352085536,1738941049275,-500.0,0.00011373,2]
[352085538,1738941049285,-500.0,0.00011373,2]
[352085539,1738941049294,-557.93059378,0.00011373,2]
[352085541,1738941049304,-555.81,0.00011373,2]
[352085544,1738941049313,-649.39,0.00011373,2]
[352085546,1738941049324,-500.0,0.00011373,2]
[352085548,1738941049334,-151.0,0.000114,2]
[352085550,1738941049344,-500.0,0.00011449,2]
[352085552,1738941049355,-500.0,0.00011449,2]
[352085554,1738941049364,-500.0,0.00011449,2]
[352085556,1738941049374,-500.0,0.00011449,2]
[352085558,1738941049383,-500.0,0.00011449,2]
[352085560,1738941049393,-500.0,0.00011449,2]
[352085562,1738941049403,-500.0,0.00011449,2]
[352085564,1738941049413,-546.71654573,0.00011449,2]
[352085566,1738941049423,-1349.76,0.00011449,2]
[352085568,1738941049433,-1349.76,0.00011449,2]
[352085570,1738941049444,-1349.76,0.00011449,2]
[352085571,1738941049456,-1349.76,0.00011449,2]
[352085574,1738941049466,-1349.76,0.00011449,2]
[352085576,1738941049476,-500.0,0.00011449,2]
[352085578,1738941049486,-500.0,0.0001145,2]
[352085579,1738941049496,-500.0,0.0001145,2]
[352085581,1738941049506,-500.0,0.0001145,2]
[352085584,1738941049515,-6759.41,0.0001145,2]
[352085585,1738941049525,-1349.76,0.0001145,2]
[352085587,1738941049537,-1349.76,0.0001145,2]
[352085590,1738941049548,-1349.76,0.0001145,2]
[352085592,1738941049558,-944.65,0.00011451,2]
[352085594,1738941049568,-500.0,0.00011451,2]
[352085596,1738941049578,-6759.41,0.00011492,2]
[352085598,1738941049588,-2715.79738872,0.00011493,2]
[352085600,1738941049598,-6759.41,0.00011498,2]
[352085602,1738941049610,-6759.41,0.00011498,2]
[352085604,1738941049620,-6759.41,0.00011498,2]
[352085606,1738941049631,-6759.41,0.00011498,2]
[352085608,1738941049640,-500.0,0.00011499,2]
[352085610,1738941049650,-500.0,0.00011499,2]
[352085612,1738941049660,-500.0,0.00011499,2]
[352085614,1738941049669,-500.0,0.00011499,2]
[352085616,1738941049679,-500.0,0.00011499,2]
[352085618,1738941049689,-500.0,0.00011499,2]
[352085620,1738941049698,-500.0,0.00011499,2]
[352085622,1738941049708,-500.0,0.00011499,2]
[352085624,1738941049717,-922.9,0.00011499,2]
[352085626,1738941049727,-36439.87,0.00011499,2]
[352085628,1738941049737,-500.0,0.00011499,2]
[352085630,1738941049747,-1907.71,0.00011499,2]
[352085632,1738941049757,-6759.41,0.00011499,2]
[352085634,1738941049767,-6759.41,0.00011499,2]
[352085636,1738941049777,-897.46,0.00011499,2]
[352085638,1738941049786,-17627.71,0.00011499,2]
[352085640,1738941049795,-561.48157875,0.00011499,2]
[352085642,1738941049805,-500.0,0.00011499,2]
[352085644,1738941049815,-1554.2,0.00011499,2]
[352085646,1738941049825,-500.0,0.00011499,2]
[352085648,1738941049835,-866.75,0.00011499,2]
[352085650,1738941049845,-1349.76,0.00011499,2]
[352085652,1738941049857,-1349.76,0.00011499,2]
[352085654,1738941049868,-500.0,0.00011499,2]
[352085656,1738941049878,-510.81051585,0.00011499,2]
[352085658,1738941049888,-500.0,0.00011499,2]
[352085660,1738941049897,-13990.34,0.00011499,2]
[352085662,1738941049907,-13752.0,0.000115,2]
[352085664,1738941049916,-6875.0,0.000115,2]
[352085666,1738941049926,-6875.0,0.000115,2]
[352085668,1738941049935,-6875.0,0.000115,2]
[352085670,1738941049945,-6875.0,0.000115,2]
[352085672,1738941049955,-151.0,0.000115,2]
[352085675,1738941049968,-151.0,0.000115,2]
[352085677,1738941049978,-151.0,0.000115,2]
[352085679,1738941049988,-503.18470137,0.000115,2]
[352085681,1738941049997,-500.0,0.00011506,2]
[352085683,1738941050007,-5691.84,0.00011506,2]
[352085685,1738941050016,-1334.31,0.00011506,2]
[352085687,1738941050025,-1371.83,0.00011506,2]
[352085689,1738941050034,-500.0,0.00011506,2]
[352085691,1738941050044,-500.0,0.00011506,2]
[352085693,1738941050053,-790.6,0.00011506,2]
[352085694,1738941050062,-3441.54,0.00011506,2]
[352085696,1738941050071,-500.0,0.00011507,2]
[352085698,1738941050081,-509.65396063,0.00011507,2]
[352085700,1738941050091,-500.0,0.00011507,2]
[352085702,1738941050100,-723.69,0.00011507,2]
[352085704,1738941050112,-8909.14,0.00011507,2]
[352085706,1738941050121,-740.55,0.00011507,2]
[352085708,1738941050131,-500.0,0.00011507,2]
[352085710,1738941050140,-887.55,0.00011507,2]
[352085712,1738941050149,-500.0,0.00011507,2]
[352085714,1738941050159,-500.0,0.00011507,2]
[352085716,1738941050168,-4333.25,0.00011507,2]
[352085718,1738941050178,-1976.82,0.00011507,2]
[352085720,1738941050187,-10647.36,0.00011507,2]
[352085722,1738941050196,-1536.63,0.00011507,2]
[352085724,1738941050206,-500.0,0.00011507,2]
[352085726,1738941050216,-500.0,0.00011507,2]
[352085728,1738941050226,-600.61,0.00011507,2]
[352085730,1738941050235,-500.0,0.00011507,2]
[352085733,1738941050244,-500.0,0.00011507,2]
[352085735,1738941050254,-4658.66,0.00011507,2]
[352085737,1738941050263,-5576.86,0.00011507,2]
[352085747,1738941050272,-500.0,0.00011507,2]
[352085749,1738941050360,-500.0,0.00011507,2]
[352085751,1738941050370,-3392.61,0.00011507,2]
[352085753,1738941050379,-6759.41,0.00011509,2]
[352085755,1738941050388,-500.0,0.0001151,2]
[352085757,1738941050397,-500.0,0.0001151,2]
[352085759,1738941050408,-500.0,0.0001151,2]
[352085761,1738941050417,-500.0,0.0001151,2]
[352085763,1738941050426,-500.0,0.0001151,2]
[352085765,1738941050435,-500.0,0.0001151,2]
[352085767,1738941050448,-500.0,0.0001151,2]
[352085769,1738941050458,-500.0,0.0001151,2]
[352085771,1738941050467,-500.0,0.0001151,2]
[352085773,1738941050476,-500.0,0.0001151,2]
[352085775,1738941050495,-500.0,0.0001151,2]
[352085777,1738941050514,-500.0,0.0001151,2]
[352085778,1738941050523,-500.0,0.0001151,2]
[352085779,1738941050534,-500.0,0.0001151,2]
[352085780,1738941050543,-500.0,0.0001151,2]
[352085781,1738941050553,-500.0,0.0001151,2]
[352085782,1738941050562,-504.68691443,0.0001151,2]
[352085783,1738941050571,-512.21868287,0.0001151,2]
[352085784,1738941050580,-500.0,0.0001151,2]
[352085785,1738941050589,-500.0,0.0001151,2]
[352085786,1738941050598,-500.0,0.0001151,2]
[352085787,1738941050610,-500.0,0.0001151,2]
[352085788,1738941050619,-500.0,0.0001151,2]
[352085789,1738941050628,-500.0,0.0001151,2]
[352085791,1738941050638,-847.75,0.0001151,2]
[352085792,1738941050647,-500.0,0.0001151,2]
[352085794,1738941050656,-500.0,0.0001151,2]
[352085796,1738941050665,-500.0,0.0001151,2]
[352085798,1738941050676,-1160.58,0.0001151,2]
[352085800,1738941050685,-158.20876609,0.0001151,2]
[352085802,1738941050694,-500.0,0.0001151,2]
[352085804,1738941050703,-500.0,0.0001151,2]
[352085806,1738941050712,-500.0,0.0001151,2]
[352085808,1738941050722,-500.0,0.0001151,2]
[352085810,1738941050731,-500.0,0.0001151,2]
[352085812,1738941050740,-500.0,0.0001151,2]
[352085814,1738941050749,-500.0,0.0001151,2]
[352085816,1738941050758,-500.0,0.0001151,2]
[352085818,1738941050768,-187.17761615,0.0001151,2]
[352085820,1738941050778,-688.32,0.0001151,2]
[352085822,1738941050787,-500.0,0.0001151,2]
[352085824,1738941050797,-500.0,0.0001151,2]
[352085826,1738941050806,-500.0,0.0001151,2]
[352085828,1738941050816,-500.0,0.0001151,2]
[352085830,1738941050825,-500.0,0.0001151,2]
[352085832,1738941050835,-500.0,0.0001151,2]
[352085834,1738941050844,-500.0,0.0001151,2]
[352085836,1738941050853,-500.0,0.0001151,2]
[352085838,1738941050868,-500.0,0.0001151,2]
[352085840,1738941050877,-500.0,0.0001151,2]
[352085842,1738941050887,-500.0,0.0001151,2]
[352085844,1738941050896,-500.0,0.0001151,2]
[352085846,1738941050907,-500.0,0.0001151,2]
[352085848,1738941050916,-500.0,0.0001151,2]
[352085850,1738941050925,-500.0,0.0001151,2]
[352085852,1738941050935,-500.0,0.0001151,2]
[352085854,1738941050945,-1282.91,0.0001151,2]
[352085857,1738941050955,-514.15351747,0.0001151,2]
[352085859,1738941050964,-500.0,0.0001151,2]
[352085861,1738941050974,-559.24,0.0001151,2]
[352085863,1738941050983,-500.0,0.0001151,2]
[352085865,1738941050993,-500.0,0.0001151,2]
[352085867,1738941051002,-500.0,0.0001151,2]
[352085869,1738941051013,-449.64892661,0.0001151,2]
[352085871,1738941051022,-500.0,0.0001151,2]
[352085873,1738941051033,-500.0,0.0001151,2]